bitfinex-derivatives/quotes_ETHF0:USTF0_20210401
["timestamp","ask_amount","ask_price","bid_price","bid_amount"]
[1617267108581,44.6421,1942.6,1942.2,2.90695]
[1617267108779,44.6421,1942.6,1940.3,33.584]
[1617267109181,14.6421,1942.6,1940.3,33.584]
[1617267109580,44.6421,1942.6,1940.3,33.584]
[1617267110581,3.99705,1941.8,1941.6,2.90695]
[1617267111983,3.99705,1941.8,1940.3,33.584]
[1617267111984,59.3984,1941.6,1940.3,33.584]
[1617267112187,59.3984,1941.6,1940.3,31.0]
[1617267112590,59.3984,1941.6,1941.2,2.90695]
[1617267112984,89.3984,1941.6,1941.2,2.90695]
[1617267113388,89.3984,1941.6,1940.3,31.0]
[1617267113594,14.3194,1941.5,1940.3,31.0]
[1617267113796,30.0,1941.4,1940.3,31.0]
[1617267113990,2.0,1941.3,1940.3,31.0]
[1617267114186,30.0,1941.2,1940.3,31.0]
[1617267114392,2.0,1941.1,1940.3,31.0]
[1617267114586,32.90695,1940.4,1940.3,31.0]
[1617267114788,34.18705,1940.4,1939.4,2.90695]
[1617267114984,34.18705,1940.4,1937.3,1.0217]
[1617267115189,60.0337,1938.2,1935.6,2.0]
[1617267115388,61.6691,1938.2,1935.6,2.0]
[1617267115587,13.8956,1938.1,1935.6,4.584]
[1617267115986,13.8956,1938.1,1935.6,35.6111]
[1617267116590,13.8956,1938.1,1938.0,2.90695]
[1617267117990,13.8756,1938.1,1938.0,2.90695]
[1617267119590,12.799,1938.1,1938.0,2.90695]
[1617267119790,81.2225,1938.6,1938.0,2.90695]
[1617267119990,14.2387,1940.3,1938.0,4.14765]
[1617267120190,68.4813,1939.2,1938.0,4.14765]
[1617267120592,68.4813,1939.2,1939.1,2.90695]
[1617267120992,68.4613,1939.2,1939.1,2.90695]
[1617267121790,2.90695,1939.9,1939.1,2.90695]
[1617267122394,14.2387,1940.3,1939.1,2.90695]
[1617267122594,14.2387,1940.3,1939.9,2.90695]
[1617267124601,2.90695,1940.0,1939.6,2.90695]
[1617267125201,2.90695,1940.0,1937.4,2.584]
[1617267125802,14.4315,1939.9,1936.1,1.026]
[1617267126202,16.0236,1939.9,1936.1,1.026]
[1617267126605,16.0236,1939.9,1939.8,2.90695]
[1617267126804,2.0,1941.8,1939.8,2.90695]
[1617267127003,30.0,1942.5,1939.8,2.90695]
[1617267127404,14.4363,1942.7,1939.8,5.49095]
[1617267128006,44.4363,1942.7,1939.8,5.49095]
[1617267128604,44.4363,1942.7,1939.8,2.584]
[1617267130707,44.4363,1942.7,1941.4,2.90695]
[1617267130908,14.4363,1942.7,1941.4,2.90695]
[1617267132008,14.1595,1942.6,1941.4,2.90695]
[1617267132609,2.90695,1941.8,1941.4,2.90695]
[1617267133410,14.1595,1942.6,1941.4,2.90695]
[1617267133809,44.1595,1942.6,1941.4,2.90695]
[1617267134610,2.90695,1942.1,1941.4,2.90695]
[1617267134812,32.90695,1942.1,1941.4,2.90695]
[1617267135213,2.90695,1942.1,1941.4,2.90695]
[1617267135811,32.90695,1942.1,1941.4,2.90695]
[1617267136213,32.90695,1942.1,1939.8,4.584]
[1617267136413,72.4601,1941.5,1939.8,4.584]
[1617267136613,2.90695,1941.4,1941.2,2.90695]
[1617267137213,14.3191,1941.3,1939.8,2.584]
[1617267137414,44.3191,1941.3,1939.8,2.584]
[1617267137815,44.3191,1941.3,1938.8,4.584]
[1617267138013,59.2934,1941.3,1938.8,4.584]
[1617267138215,90.0265,1940.6,1938.8,2.584]
[1617267138615,90.0265,1940.6,1939.9,2.90695]
[1617267139416,90.0265,1940.6,1938.8,2.584]
[1617267140418,90.0265,1940.6,1937.0,2.0]
[1617267140419,92.0265,1940.6,1937.0,2.0]
[1617267140620,92.0265,1940.6,1938.5,2.90695]
[1617267141218,33.3916,1940.6,1938.5,2.90695]
[1617267141420,70.0961,1939.1,1937.0,2.0]
[1617267141619,30.0,1939.0,1936.5,7.773]
[1617267141820,30.0,1939.0,1936.5,2.584]
[1617267142021,32.0,1939.0,1936.5,2.584]
[1617267142420,30.0,1938.8,1936.5,2.584]
[1617267142620,30.0,1938.8,1937.5,2.90695]
[1617267142819,32.0,1938.8,1937.5,2.90695]
[1617267143019,32.0,1938.8,1936.5,2.584]
[1617267144621,32.0,1938.8,1936.8,2.90695]
[1617267145321,60.4265,1937.6,1935.3,4.584]
[1617267145524,30.0,1937.5,1935.3,4.584]
[1617267145723,30.0,1937.5,1935.3,2.584]
[1617267146423,30.0,1937.5,1936.3,0.02]
[1617267146622,2.90695,1936.4,1934.9,2.90695]
[1617267146823,2.90695,1936.4,1932.7,2.0]
[1617267147024,30.0,1936.3,1932.7,2.0]
[1617267147224,2.0,1936.2,1932.7,2.0]
[1617267147430,2.0,1936.2,1930.9,7.787]
[1617267147431,30.0,1936.1,1931.4,2.0]
[1617267147630,2.0,1936.0,1931.4,2.0]
[1617267147829,30.0,1935.9,1931.4,2.0]
[1617267148029,2.0,1935.8,1930.9,7.787]
[1617267148230,2.0,1935.8,1930.9,37.787]
[1617267148231,15.703,1935.8,1930.9,37.787]
[1617267148431,32.0,1935.7,1931.0,1.1]
[1617267148630,32.0,1935.7,1933.6,2.90695]
[1617267148830,61.8929,1934.1,1933.6,2.90695]
[1617267149031,62.9729,1934.1,1933.6,2.90695]
[1617267150033,61.8929,1934.1,1933.6,2.90695]
[1617267150831,61.8929,1934.1,1934.0,2.90695]
[1617267152831,64.79985,1934.1,1934.0,2.90695]
[1617267153232,61.8929,1934.1,1934.0,2.90695]
[1617267153633,61.8729,1934.1,1934.0,2.90695]
[1617267156934,61.8729,1934.1,1932.8,2.584]
[1617267157135,63.3843,1934.1,1931.1,1.1]
[1617267157736,93.3843,1934.1,1929.7,2.0]
[1617267157936,93.3843,1934.1,1929.7,3.1]
[1617267158136,93.3843,1934.1,1929.9,1.0226]
[1617267158337,93.3843,1934.1,1929.7,32.0]
[1617267158537,31.5114,1934.1,1930.6,0.02]
[1617267158736,31.5114,1934.1,1932.7,2.90695]
[1617267158936,72.7676,1933.3,1929.7,32.0]
[1617267159137,74.2733,1933.3,1929.7,32.0]
[1617267159340,44.6722,1933.2,1929.7,32.0]
[1617267159536,44.6722,1933.2,1929.7,2.0]
[1617267160738,2.90695,1932.6,1932.3,2.90695]
[1617267161139,4.08185,1932.6,1932.3,2.90695]
[1617267162141,4.08185,1932.6,1930.7,2.584]
[1617267162742,1.1749,1932.6,1932.0,2.90695]
[1617267163144,1.1749,1932.6,1930.6,1.0]
[1617267164746,1.1749,1932.6,1931.1,2.90695]
[1617267166146,14.6722,1933.2,1931.1,2.90695]
[1617267166847,14.6722,1933.2,1930.6,1.0]
[1617267167049,16.1421,1933.2,1930.6,1.0]
[1617267167448,46.1421,1933.2,1930.6,1.0]
[1617267168051,16.1421,1933.2,1930.6,1.0]
[1617267168851,2.90695,1931.9,1931.8,2.90695]
[1617267169050,2.90695,1931.9,1930.6,1.0]
[1617267169852,13.9601,1931.8,1930.6,1.0]
[1617267170851,13.9601,1931.8,1931.7,2.90695]
[1617267171253,13.9601,1931.8,1930.6,1.0]
[1617267171451,15.5812,1931.8,1930.6,1.0]
[1617267172654,13.9601,1931.8,1930.6,1.0]
[1617267172854,13.9601,1931.8,1931.7,2.90695]
[1617267173255,13.9601,1931.8,1930.7,1.1777]
[1617267174055,13.9601,1931.8,1930.6,1.0]
[1617267174853,13.9601,1931.8,1931.7,2.90695]
[1617267175856,13.9601,1931.8,1931.7,4.18445]
[1617267176954,13.9601,1931.8,1931.7,2.90695]
[1617267177355,10.0491,1931.8,1931.7,2.90695]
[1617267177556,67.1928,1932.8,1931.7,2.90695]
[1617267178359,28.4568,1933.1,1931.7,2.90695]
[1617267178958,28.4568,1933.1,1933.0,2.90695]
[1617267179161,20.8089,1933.1,1933.0,4.54775]
[1617267179357,84.2799,1934.4,1933.0,4.54775]
[1617267180859,84.2799,1934.4,1934.3,2.90695]
[1617267181258,84.2799,1934.4,1933.0,2.584]
[1617267181861,84.2799,1934.4,1931.5,16.9689]
[1617267182064,85.7785,1934.4,1931.5,15.56]
[1617267182864,2.90695,1934.2,1933.9,2.90695]
[1617267183466,2.90695,1934.2,1931.5,15.56]
[1617267184266,84.2799,1934.4,1931.5,15.56]
[1617267184467,84.2799,1934.4,1931.5,16.6352]
[1617267184868,84.2799,1934.4,1934.3,2.90695]
[1617267185069,84.2799,1934.4,1934.3,4.32595]
[1617267185467,2.90695,1934.7,1934.3,4.32595]
[1617267186867,2.90695,1935.3,1934.6,2.90695]
[1617267187469,2.90695,1935.3,1933.7,1.1504]
[1617267187869,13.7093,1935.2,1933.7,1.1504]
[1617267188870,13.7093,1935.2,1935.0,2.90695]
[1617267189871,13.7093,1935.2,1935.0,4.14665]
[1617267191470,14.1858,1935.6,1935.0,4.14665]
[1617267192270,78.4779,1935.8,1935.0,4.14665]
[1617267192871,14.1111,1936.8,1935.0,4.14665]
[1617267193071,17.01805,1936.8,1936.7,4.27355]
[1617267193272,14.1111,1936.8,1936.7,4.27355]
[1617267194273,14.1111,1936.8,1935.0,3.8237]
[1617267195074,14.1111,1936.8,1936.5,2.90695]
[1617267195273,14.1111,1936.8,1936.3,1.4721]
[1617267197075,14.1111,1936.8,1936.7,2.90695]
[1617267197275,14.1111,1936.8,1935.0,3.8237]
[1617267197475,14.1111,1936.8,1935.0,2.584]
[1617267197676,82.874,1936.5,1935.0,2.584]
[1617267197875,84.1098,1936.5,1933.7,2.584]
[1617267198675,84.1098,1936.5,1933.7,7.773]
[1617267199076,82.874,1936.5,1935.5,2.90695]
[1617267200478,82.874,1936.5,1935.5,4.20685]
[1617267200678,14.1111,1936.8,1935.5,4.20685]
[1617267201080,14.1111,1936.8,1936.7,2.90695]
[1617267201279,14.1111,1936.8,1936.7,3.93795]
[1617267203579,6.0167,1936.8,1936.7,3.93795]
[1617267203779,100.4937,1938.5,1936.7,3.93795]
[1617267205084,100.4937,1938.5,1938.0,2.90695]
[1617267205285,100.4937,1938.5,1938.0,4.20895]
[1617267207090,2.90695,1938.1,1938.0,4.20895]
[1617267207291,100.4937,1938.5,1938.0,4.20895]
[1617267209093,100.4937,1938.5,1938.3,2.90695]
[1617267211190,2.90695,1938.4,1936.7,3.615]
[1617267211392,2.90695,1938.4,1936.7,2.584]
[1617267211792,63.0403,1937.6,1936.7,2.584]
[1617267213098,63.0403,1937.6,1937.1,2.90695]
[1617267214299,63.0403,1937.6,1935.5,7.773]
[1617267215102,63.0403,1937.6,1937.1,2.90695]
[1617267215302,62.034,1937.6,1935.7,1.153]
[1617267216105,63.2203,1937.6,1935.7,1.153]
[1617267216302,63.2203,1937.6,1935.5,7.773]
[1617267217107,63.2203,1937.6,1936.5,2.90695]
[1617267217308,30.0,1937.5,1935.5,5.189]
[1617267219111,2.90695,1935.6,1935.5,5.189]
[1617267219310,2.90695,1935.6,1934.1,2.584]
[1617267219311,4.55235,1935.6,1934.1,2.584]
[1617267219710,28.5406,1935.5,1934.1,2.584]
[1617267220113,66.4577,1935.3,1932.4,7.773]
[1617267221213,66.4577,1935.3,1934.7,2.90695]
[1617267222614,66.4577,1935.3,1932.5,1.5789]
[1617267222814,67.9046,1935.3,1932.5,1.5789]
[1617267223215,70.81155,1935.3,1935.2,2.90695]
[1617267223415,67.9046,1935.3,1935.2,2.90695]
[1617267223814,66.4577,1935.3,1935.2,4.15135]
[1617267224416,60.6585,1935.3,1935.2,4.15135]
[1617267224615,50.7987,1935.3,1935.2,4.15135]
[1617267224821,47.5121,1935.3,1935.2,4.15135]
[1617267225016,44.2255,1935.3,1935.2,2.90695]
[1617267227019,28.5406,1935.5,1935.2,2.90695]
[1617267227224,28.5406,1935.5,1935.4,2.90695]
[1617267227418,28.5406,1935.5,1935.4,4.56895]
[1617267229725,28.5406,1935.5,1935.4,2.90695]
[1617267230624,3.8868,1935.5,1935.4,2.90695]
[1617267230824,13.8559,1936.0,1935.4,2.90695]
[1617267231225,13.8559,1936.0,1935.9,2.90695]
[1617267232327,13.8559,1936.0,1934.1,1.1]
[1617267232528,14.9809,1936.0,1934.0,7.773]
[1617267232726,90.7963,1936.0,1934.0,7.773]
[1617267233226,2.90695,1935.8,1935.6,2.90695]
[1617267233426,14.9809,1936.0,1935.6,2.90695]
[1617267233627,13.8559,1936.0,1935.6,2.90695]
[1617267234628,13.8559,1936.0,1935.6,4.25245]
[1617267235230,13.8559,1936.0,1935.9,2.90695]
[1617267236629,2.90695,1937.3,1935.9,2.90695]
[1617267236831,60.1135,1938.0,1935.9,2.90695]
[1617267237029,60.1135,1938.0,1935.9,5.49095]
[1617267237230,60.1135,1938.0,1937.8,2.90695]
[1617267237432,1.1,1940.4,1937.8,2.90695]
[1617267237630,2.0,1939.1,1937.8,2.90695]
[1617267237831,30.0,1939.0,1937.8,2.90695]
[1617267239232,15.90695,1938.4,1937.6,1.2317]
[1617267240638,13.0,1938.4,1937.6,1.2317]
[1617267241243,13.0,1938.4,1938.3,2.90695]
[1617267241438,13.0,1938.4,1938.3,3.95425]
[1617267242840,13.0,1938.4,1938.3,2.90695]
[1617267245739,12.99,1938.4,1938.3,2.90695]
[1617267246143,12.99,1938.4,1936.0,33.1]
[1617267246343,14.5084,1938.4,1936.0,33.1]
[1617267246943,14.5084,1938.4,1936.0,3.1]
[1617267247142,44.8812,1938.3,1936.0,3.1]
[1617267247544,44.8812,1938.3,1936.0,1.1]
[1617267247745,44.8812,1938.3,1935.9,7.773]
[1617267249348,2.90695,1937.0,1936.6,2.90695]
[1617267249548,4.32265,1937.0,1936.6,2.90695]
[1617267249749,1.4157,1937.0,1936.6,2.90695]
[1617267249949,14.2839,1936.9,1936.6,2.90695]
[1617267251350,14.2839,1936.9,1936.8,2.90695]
[1617267255357,14.2839,1936.9,1936.6,2.90695]
[1617267255561,14.2839,1936.9,1935.9,5.189]
[1617267255562,44.2839,1936.9,1935.9,5.189]
[1617267255758,45.792,1936.9,1934.8,2.584]
[1617267256157,73.8686,1936.3,1934.8,2.584]
[1617267257159,103.8686,1936.3,1934.8,2.584]
[1617267257361,103.8686,1936.3,1935.5,2.90695]
[1617267258461,73.8686,1936.3,1935.5,2.90695]
[1617267259062,72.8686,1936.3,1935.5,2.90695]
[1617267259261,102.8686,1936.3,1935.5,2.90695]
[1617267259461,3.91035,1935.7,1935.5,2.90695]
[1617267260061,14.9681,1935.6,1935.5,2.90695]
[1617267263365,17.87505,1935.6,1935.5,2.90695]
[1617267263565,14.9681,1935.6,1935.5,2.90695]
[1617267265367,17.87505,1935.6,1935.5,2.90695]
[1617267265566,14.9681,1935.6,1935.5,2.90695]
[1617267269471,14.9681,1935.6,1935.5,4.47415]
[1617267272177,14.0928,1935.6,1935.5,4.47415]
[1617267272376,13.8486,1935.6,1935.5,4.47415]
[1617267272577,13.116,1935.6,1935.5,4.47415]
[1617267272777,4.4054,1935.6,1935.5,4.47415]
[1617267273178,14.3425,1936.8,1935.5,4.47415]
[1617267273580,14.3425,1936.8,1936.7,4.51715]
[1617267276382,14.3425,1936.8,1936.7,2.90695]
[1617267278482,14.3425,1936.8,1936.7,4.09575]
[1617267279786,81.3129,1937.9,1936.7,4.09575]
[1617267281591,81.3129,1937.9,1937.8,2.90695]
[1617267281790,2.90695,1938.5,1937.8,4.02795]
[1617267283590,27.731,1938.4,1938.3,2.90695]
[1617267294997,27.731,1938.4,1938.3,4.38185]
[1617267295797,27.5473,1938.4,1938.3,4.38185]
[1617267296599,27.5473,1938.4,1938.3,2.90695]
[1617267304608,27.5473,1938.4,1936.2,2.0]
[1617267304809,73.5913,1937.5,1936.1,2.584]
[1617267305208,74.9786,1937.5,1936.1,2.584]
[1617267305608,2.90695,1937.3,1936.1,2.584]
[1617267306410,17.32945,1937.3,1936.1,2.584]
[1617267307612,14.4225,1937.3,1937.2,2.90695]
[1617267307812,14.4225,1937.3,1936.1,2.584]
[1617267309613,14.4225,1937.3,1936.9,2.90695]
[1617267311216,14.4225,1937.3,1936.1,2.584]
[1617267311415,45.949,1937.3,1936.1,2.584]
[1617267311816,45.949,1937.3,1936.3,2.90695]
[1617267312016,45.949,1937.3,1936.1,2.584]
[1617267312217,76.5971,1936.3,1936.1,2.584]
[1617267312420,76.5971,1936.3,1935.7,5.189]
[1617267312421,78.1398,1936.3,1935.7,5.189]
[1617267312618,13.8031,1936.2,1935.7,5.189]
[1617267313121,14.2004,1936.1,1935.7,5.189]
[1617267313919,2.90695,1935.8,1935.7,5.189]
[1617267314119,4.38325,1935.8,1935.5,2.90695]
[1617267315121,30.0,1935.7,1934.5,7.773]
[1617267315320,75.3351,1934.9,1934.5,7.773]
[1617267315521,76.847,1934.9,1934.5,7.773]
[1617267315922,76.847,1934.9,1934.8,2.90695]
[1617267316721,1.5119,1934.9,1934.8,2.90695]
[1617267317924,4.41885,1934.9,1934.8,2.90695]
[1617267319024,85.2766,1934.8,1934.5,2.584]
[1617267319523,115.2766,1934.8,1934.5,2.584]
[1617267320025,2.90695,1934.6,1934.5,2.584]
[1617267320225,1.5119,1934.9,1934.5,2.584]
[1617267320426,80.4505,1935.3,1934.2,2.90695]
[1617267321128,30.0,1935.2,1934.2,2.90695]
[1617267321426,31.4289,1935.2,1934.2,2.90695]
[1617267321628,1.4289,1935.2,1934.2,2.90695]
[1617267322029,1.4289,1935.2,1935.0,2.90695]
[1617267322429,80.4505,1935.3,1935.0,2.90695]
[1617267322832,15.1277,1935.5,1935.0,2.90695]
[1617267323932,15.1277,1935.5,1935.4,2.90695]
[1617267324132,15.1277,1935.5,1935.4,4.11275]
[1617267327944,18.03465,1935.5,1935.4,4.11275]
[1617267328143,15.1277,1935.5,1935.4,2.90695]
[1617267328345,101.7248,1935.5,1935.4,2.90695]
[1617267329044,15.1277,1935.5,1935.4,2.90695]
[1617267329243,13.0713,1935.5,1935.4,4.04405]
[1617267329443,14.6339,1935.6,1935.4,4.04405]
[1617267329843,11.2913,1935.6,1935.4,4.04405]
[1617267330044,11.1115,1935.6,1935.4,4.04405]
[1617267330244,7.7689,1935.6,1935.4,4.04405]
[1617267330644,4.2465,1935.6,1935.4,4.04405]
[1617267330844,4.2465,1935.6,1935.4,5.08855]
[1617267331045,0.7241,1935.6,1935.4,5.08855]
[1617267331244,0.7241,1935.6,1935.4,4.04405]
[1617267331745,76.8035,1936.6,1935.4,4.04405]
[1617267331948,76.8035,1936.6,1936.5,2.90695]
[1617267332147,2.90695,1937.2,1936.5,4.11725]
[1617267333852,2.90695,1937.2,1936.5,2.90695]
[1617267334055,30.0,1937.6,1936.9,2.90695]
[1617267334253,30.0,1937.6,1934.5,32.0]
[1617267334254,62.5745,1936.8,1934.5,32.0]
[1617267334457,1.4184,1936.8,1934.5,33.1]
[1617267334654,61.1728,1936.1,1934.5,3.1]
[1617267334855,92.7708,1936.1,1934.5,1.1]
[1617267336053,92.7708,1936.1,1935.6,2.90695]
[1617267336453,62.7708,1936.1,1935.6,2.90695]
[1617267336655,2.0,1936.6,1935.6,2.90695]
[1617267336854,95.8435,1936.6,1935.6,2.90695]
[1617267337055,95.8435,1936.6,1935.6,4.47875]
[1617267337456,63.8435,1936.6,1935.6,4.47875]
[1617267338057,2.90695,1936.5,1936.3,3.98705]
[1617267339158,2.90695,1936.5,1935.6,1.5718]
[1617267339357,2.90695,1936.5,1935.1,1.3543]
[1617267339958,63.8435,1936.6,1936.3,2.90695]
[1617267340159,63.8435,1936.6,1935.1,1.3543]
[1617267340160,63.8435,1936.6,1935.5,1.3839]
[1617267342060,63.8435,1936.6,1936.5,4.05915]
[1617267342259,44.8364,1937.0,1936.5,4.05915]
[1617267342963,15.0648,1936.9,1936.5,4.05915]
[1617267344167,15.0648,1936.9,1936.8,2.90695]
[1617267345063,29.4649,1936.9,1936.8,2.90695]
[1617267350074,13.7007,1937.0,1936.8,2.90695]
[1617267350269,90.8394,1938.4,1936.8,2.90695]
[1617267351069,90.8194,1938.4,1936.8,2.90695]
[1617267351670,90.8194,1938.4,1936.8,4.00695]
[1617267352070,90.8194,1938.4,1938.3,2.90695]
[1617267352270,12.7863,1938.4,1938.3,4.57455]
[1617267353372,12.7863,1938.4,1936.9,1.5017]
[1617267353770,66.436,1938.1,1936.9,1.5017]
[1617267353970,96.436,1938.1,1936.9,1.5017]
[1617267354171,4.41045,1937.0,1934.5,34.18840216]
[1617267354373,79.7266,1936.6,1934.8,1.1]
[1617267354572,80.7956,1936.6,1934.8,1.1]
[1617267354772,80.7956,1936.6,1934.6,2.0]
[1617267355371,80.7956,1936.6,1934.7,1.1]
[1617267355572,80.7956,1936.6,1934.7,31.1]
[1617267355771,79.7266,1936.6,1934.7,32.1374]
[1617267356177,79.7266,1936.6,1936.5,2.90695]
[1617267356372,2.90695,1937.3,1936.5,4.13675]
[1617267356772,81.5315,1937.8,1936.5,4.13675]
[1617267357273,81.5315,1937.8,1936.8,0.22]
[1617267358075,81.5315,1937.8,1937.7,2.90695]
[1617267358278,12.7863,1938.4,1937.7,3.90835]
[1617267359578,12.7863,1938.4,1937.7,62.15595]
[1617267360176,12.7863,1938.4,1938.3,4.19265]
[1617267362279,12.7863,1938.4,1938.3,2.90695]
[1617267363078,12.7863,1938.4,1936.6,86.0386]
[1617267363278,13.9994,1938.4,1936.6,86.0386]
[1617267363679,43.9994,1938.4,1936.6,86.0386]
[1617267364079,43.9994,1938.4,1937.8,2.90695]
[1617267365281,13.9994,1938.4,1937.8,2.90695]
[1617267365482,12.7863,1938.4,1937.8,2.90695]
[1617267366086,12.7863,1938.4,1938.0,2.90695]
[1617267367482,12.7863,1938.4,1938.0,4.01415]
[1617267368086,12.7863,1938.4,1938.3,2.90695]
[1617267375096,12.7863,1938.4,1938.3,4.51385]
[1617267375297,11.7863,1938.4,1938.3,4.51385]
[1617267390614,11.7863,1938.4,1938.3,34.51385]
[1617267390815,10.0853,1938.4,1938.3,34.51385]
[1617267391017,7.1194,1938.4,1938.3,34.51385]
[1617267391214,5.2904,1938.4,1938.3,34.51385]
[1617267391417,5.2904,1938.4,1938.3,36.51385]
[1617267391613,3.577,1938.4,1938.3,36.51385]
[1617267391818,82.0469,1940.5,1938.3,36.51385]
[1617267392015,82.0469,1940.5,1938.8,74.0473]
[1617267392416,2.90695,1940.9,1940.4,4.33345]
[1617267393821,15.0698,1940.8,1940.4,4.33345]
[1617267394421,15.0698,1940.8,1940.7,2.90695]
[1617267396222,15.0698,1940.8,1940.7,67.19735]
[1617267396823,14.4988,1940.8,1940.7,67.19735]
[1617267397223,14.3675,1940.8,1940.7,67.19735]
[1617267397523,13.9088,1941.1,1940.7,67.19735]
[1617267398422,12.0958,1941.1,1941.0,2.90695]
[1617267398623,8.4698,1941.1,1941.0,4.23215]
[1617267398824,4.8438,1941.1,1941.0,4.23215]
[1617267399023,3.0308,1941.1,1941.0,4.23215]
[1617267399224,67.19735,1942.3,1941.0,4.23215]
[1617267399423,2.0,1943.6,1941.0,4.23215]
[1617267399627,2.0,1943.6,1941.6,73.031]
[1617267400424,2.0,1943.6,1942.8,2.90695]
[1617267400624,2.0,1943.6,1942.8,3.97965]
[1617267400825,30.0,1943.6,1942.8,1.0727]
[1617267401231,13.9566,1943.5,1942.8,1.0727]
[1617267401828,13.9566,1943.5,1941.6,71.9584]
[1617267402231,43.9566,1943.5,1941.6,71.9584]
[1617267402426,43.9566,1943.5,1940.4,1.4815]
[1617267402627,63.554,1943.0,1940.9,62.3874]
[1617267403528,93.554,1943.0,1940.9,62.3874]
[1617267404334,93.554,1943.0,1941.5,2.90695]
[1617267405330,31.1666,1943.0,1941.5,2.90695]
[1617267405531,31.1666,1943.0,1939.4,78.2059]
[1617267405532,79.2945,1941.9,1939.4,78.2059]
[1617267405932,15.1258,1941.8,1938.3,30.22]
[1617267406135,78.222,1941.0,1938.4,78.222]
[1617267406334,79.7256,1941.0,1940.8,2.90695]
[1617267406534,1.5036,1941.0,1940.8,2.90695]
[1617267407335,70.8646,1941.4,1940.8,2.90695]
[1617267407934,15.0057,1941.3,1940.8,2.90695]
[1617267408333,15.0057,1941.3,1940.0,1.2977]
[1617267408533,15.0057,1941.3,1939.6,72.4133]
[1617267408734,15.0057,1941.3,1940.1,1.3703]
[1617267409134,15.0057,1941.3,1940.6,69.9593]
[1617267409737,10.2979,1941.3,1940.6,69.9593]
[1617267409937,15.1258,1941.8,1940.6,69.9593]
[1617267410336,15.1258,1941.8,1941.7,2.90695]
[1617267410536,15.1258,1941.8,1941.7,4.27875]
[1617267413138,15.1258,1941.8,1941.7,2.90695]
[1617267413738,15.1258,1941.8,1939.9,97.4952]
[1617267413939,16.4681,1941.8,1939.9,67.4952]
[1617267414439,16.4681,1941.8,1941.6,2.90695]
[1617267414639,14.6696,1941.7,1941.6,2.90695]
[1617267419648,13.499,1941.7,1941.6,2.90695]
[1617267422951,12.5841,1941.7,1941.6,2.90695]
[1617267423353,15.1258,1941.8,1941.6,2.90695]
[1617267428554,10.0586,1941.8,1941.6,2.90695]
[1617267428756,77.9995,1942.9,1941.6,2.90695]
[1617267429054,2.90695,1943.4,1941.8,71.7169]
[1617267429255,2.90695,1943.4,1941.8,72.8974]
[1617267430657,2.90695,1943.4,1943.3,2.90695]
[1617267433163,103.7169,1944.2,1943.3,2.90695]
[1617267433763,2.0,1944.2,1943.3,2.90695]
[1617267433962,70.217,1944.9,1943.3,2.90695]
[1617267434163,2.0,1944.1,1943.3,2.90695]
[1617267434563,2.0,1944.1,1943.9,2.90695]
[1617267436563,2.90695,1944.0,1943.9,2.90695]
[1617267437165,2.0,1944.7,1943.9,2.90695]
[1617267437567,13.7249,1944.8,1943.9,2.90695]
[1617267438570,13.7249,1944.8,1944.7,2.90695]
[1617267438769,13.7249,1944.8,1944.7,3.94115]
[1617267439369,13.7249,1944.8,1944.7,1.0342]
[1617267439969,13.7249,1944.8,1944.3,1.5438]
[1617267440570,13.7249,1944.8,1944.5,2.90695]
[1617267441171,13.7249,1944.8,1943.8,1.3507]
[1617267441371,30.0,1944.7,1943.4,1.3938]
[1617267441572,30.0,1944.7,1943.1,76.0255]
[1617267441971,13.7249,1944.8,1943.1,77.466]
[1617267444472,43.7249,1944.8,1943.1,77.466]
[1617267444671,43.7249,1944.8,1944.1,2.90695]
[1617267445071,13.7249,1944.8,1944.1,2.90695]
[1617267446576,13.7249,1944.8,1943.6,1.4113]
[1617267446577,2.90695,1944.7,1944.6,2.90695]
[1617267449680,2.90695,1944.7,1944.1,1.2829]
[1617267449881,2.90695,1944.7,1943.1,1.4405]
[1617267450081,4.02195,1944.7,1943.0,65.0752]
[1617267450480,30.0,1944.6,1943.0,65.0752]
[1617267450681,30.0,1944.6,1943.9,2.90695]
[1617267451081,30.0,1944.6,1941.8,2.0]
[1617267451281,84.021,1944.0,1941.8,2.0]
[1617267451586,84.021,1944.0,1941.6,84.1868]
[1617267451587,114.021,1944.0,1941.7,2.0]
[1617267451782,31.098,1944.0,1941.7,2.0]
[1617267451982,82.9491,1943.1,1941.6,0.22]
[1617267452183,84.3496,1943.1,1941.6,0.22]
[1617267452584,14.5132,1943.0,1942.6,2.90695]
[1617267454090,44.5132,1943.0,1942.6,2.90695]
[1617267454491,44.5132,1943.0,1941.6,0.22]
[1617267454692,44.5132,1943.0,1941.9,2.90695]
[1617267455092,44.5132,1943.0,1941.6,0.22]
[1617267455394,30.0,1942.8,1941.6,0.22]
[1617267456798,30.0,1942.8,1942.5,2.90695]
[1617267457796,30.0,1942.8,1941.8,57.9122]